Cogmind - Beta 16.1 @@@ ROGUE MODE // 2026.03.30 @ 17:41:49 Player: ash Result: Self-destructed Performance ------------- Evolutions (2) 1000 Regions Visited (5) 1000 Robots Destroyed (21) 105 Value Destroyed (392) 392 Prototype IDs (37) 740 Alien Tech Used (0) 0 Bonus (300) 300 TOTAL SCORE: 3537 Bonus ------- Aligned with FarCom 300 Cogmind --------- Core Integrity 493/550 Matter 247/300 Energy 265/265 System Corruption 0% Temperature Cool (0) Movement Walking (120) Location -8/Materials Parts ------- > --- POWER (1) -------- Reinforced Ion Engine > --- PROPULSION (3) --- Aluminum Leg Aluminum Leg Aluminum Leg > --- UTILITY (5) ------ Lightpack 2.0 Improved Terrain Scanner > --- WEAPON (2) ------- Hammer Hammer > --- INVENTORY (40) --- Light Ion Engine Armored Wheel Medium Matter Pod (100) Transport Network Coupler Medium Laser Medium Laser Medium Laser Small Laser Field Laser Datajack Peak State ------------ > --- POWER ------------ Reinforced Ion Engine > --- PROPULSION ------- Aluminum Leg Aluminum Leg Aluminum Leg > --- UTILITY ---------- Lightpack 2.0 Structural Scanner Improved Terrain Scanner > --- WEAPON ----------- Datajack Hammer > --- INVENTORY -------- Light Ion Engine Armored Wheel Medium Matter Pod Transport Network Coupler Medium Laser Medium Laser Medium Laser Small Laser Rocket Launcher Hammer [Rating: 42] Favorites ----------- Power Light Ion Engine Engine Light Ion Engine Propulsion Aluminum Leg Leg Aluminum Leg Utility Large Storage Unit Device Structural Scanner Storage Large Storage Unit Weapon Hammer Energy Gun Medium Laser Launcher Grenade Launcher Impact Weapon Hammer Special Melee Weapon Datajack Build | -11 -10 -10 -10 -9 -8 ------- Run | Yrd Mat Min Exi Min Mat Slots Evolved 4 | . . . . . 4 Power . | . . . . . . Propulsion 1 | . . . . . 1 Utility 3 | . . . . . 3 Weapon . | . . . . . . Parts Attached 19 | 7 6 1 1 1 3 Power 2 | 1 . . . 1 . Engine 2 | 1 . . . 1 . Core . | . . . . . . Reactor . | . . . . . . Propulsion 4 | 2 . 1 . . 1 Treads . | . . . . . . Leg 4 | 2 . 1 . . 1 Wheel . | . . . . . . Hover . | . . . . . . Flight . | . . . . . . Utility 6 | 2 2 . . . 2 Device 3 | 1 1 . . . 1 Storage 3 | 1 1 . . . 1 Processor . | . . . . . . Hackware . | . . . . . . Protection . | . . . . . . Artifact . | . . . . . . Weapon 7 | 2 4 . 1 . . Energy Gun 3 | 2 1 . . . . Energy Cannon . | . . . . . . Ballistic Gun . | . . . . . . Ballistic Cannon . | . . . . . . Launcher 1 | . 1 . . . . Special Weapon . | . . . . . . Impact Weapon 2 | . 2 . . . . Slashing Weapon . | . . . . . . Piercing Weapon . | . . . . . . Special Melee Weapon 1 | . . . 1 . . Unidentified Prototypes . | . . . . . . Parts Lost 4 | . 2 1 . . 1 Power . | . . . . . . Propulsion 1 | . . 1 . . . Utility 2 | . 1 . . . 1 Weapon 1 | . 1 . . . . Highest Loss Streak 1 | . 1 1 . . 1 To Critical Strikes . | . . . . . . Average Backups 11 | 1 9 12 12 13 10 Power . | . 1 1 1 1 1 Propulsion 2 | . 2 2 2 2 1 Utility 3 | . 2 3 3 4 2 Weapon 4 | . 3 5 5 6 5 Tool/Special . | . . . . . . Unused Backups 8 | . . . . 1 7 Power 1 | . . . . . 1 Propulsion 2 | . . . . 1 1 Utility 2 | . . . . . 2 Weapon 3 | . . . . . 3 Tool/Special . | . . . . . . Average Slot Usage (%) 98 | . 99 99 100 100 78 Engine 13 | . 14 14 14 14 9 Leg 27 | . 28 27 28 28 27 Device 13 | . 13 14 14 14 15 Storage 13 | . 14 14 14 14 9 Energy Gun 7 | . 17 8 . . . Impact Weapon 13 | . 9 20 15 14 12 Special Melee Weapon 6 | . . . 12 14 5 Peak Build Rating 42 | 7 8 8 11 12 42 Average Rating 10 | 5 7 7 10 11 41 On Entrance 7 | . 7 8 8 11 12 Avg Prop Armor Cover (%) . | . . . . . . Naked Turns . | . . . . . . Heaviest Build 34 | 12 28 28 28 34 21 Greatest Support 30 | 20 20 20 20 20 30 Greatest Overweight (x) 1 | 1 1 1 1 1 . Average Overweight (x) . | . . 1 1 1 . Largest Inventory Capacity 40 | 8 15 15 15 15 40 Average Capacity 15 | 7 13 15 15 15 39 Most Carried 15 | 3 14 13 15 15 15 Average Carried 11 | 1 9 12 14 14 10 Final Capacity 40 | 8 15 15 15 15 40 Final Carried 15 | 3 13 12 15 15 10 Class Distribution -------------------- 95% | Mutant 4% | Hauler-Assassin Dominant Class ---------------- Mutant | -10/Materials Mutant | -10/Mines Mutant | -10/Exiles Mutant | -9/Mines Hauler-Assassin | -8/Materials Resources | -11 -10 -10 -10 -9 -8 ----------- Run | Yrd Mat Min Exi Min Mat Matter Collected 535 | 270 229 26 . 10 . Remotely . | . . . . . . Salvage Created 791 | 144 521 76 . . 50 Parts 35 | 8 26 1 . . . Haulers Intercepted 2 | . 2 . . . . Recyclers Shooed 3 | 1 2 . . . . Parts Field Recycled . | . . . . . . Retrieved Matter . | . . . . . . Parts Self-Destructed . | . . . . . . Prevented . | . . . . . . Parts Restored . | . . . . . . Kills | -11 -10 -10 -10 -9 -8 ------- Run | Yrd Mat Min Exi Min Mat Combat Hostiles Destroyed 10 | . 7 2 . . 1 Melee 1 | . . 1 . . . Guns 3 | . 3 . . . . AOE 4 | . 4 . . . . Classes Destroyed 9 | 2 6 . . . 1 Worker 1 | . 1 . . . . Builder 1 | . 1 . . . . Tunneler 2 | 2 . . . . . Hauler 2 | . 2 . . . . Recycler 4 | 1 3 . . . . Operator 1 | . 1 . . . . Swarmer 3 | . 3 . . . . Grunt 6 | . 4 2 . . . Hunter 1 | . . . . . 1 Best Kill Streak 5 | 3 5 2 . . 1 Combat Bots Only 3 | . 3 2 . . 1 Max Kills in Single Turn 3 | 2 3 1 . . 1 Gunslinging . | . . . . . . Exploded 2 | . 2 . . . . Melee 1 | . . 1 . . . Uniques/NPCs Destroyed . | . . . . . . Combat | -11 -10 -10 -10 -9 -8 -------- Run | Yrd Mat Min Exi Min Mat Hostile Shots Fired 71 | . 36 17 . . 18 Missed 19 | . 12 4 . . 3 Hits 52 | . 24 13 . . 15 Projectile 52 | . 24 13 . . 15 Critical Strikes 1 | . 1 . . . . Damage Taken 702 | . 291 184 . . 227 Core 151 | . 52 42 . . 57 Absorbed by Shields . | . . . . . . Core Remaining (%) 81 | 100 . . . 62 . Volleys Fired 34 | 3 31 . . . . Largest 2 | 2 2 . . . . Hottest 90 | 90 90 . . . . Shots Fired 63 | 6 57 . . . . Gun 58 | 6 52 . . . . Cannon . | . . . . . . Launcher 5 | . 5 . . . . Special . | . . . . . . Kinetic . | . . . . . . Thermal 44 | 6 38 . . . . Explosive 5 | . 5 . . . . Electromagnetic 14 | . 14 . . . . Robot Hit Streak 10 | 4 10 . . . . Robot Miss Streak 3 | . 3 . . . . Penetration Max . | . . . . . . Secondary Targets . | . . . . . . Shots Hit Robots 60 | 4 36 7 4 1 8 Core Hits 31 | 4 25 1 . . 1 Critical Kills . | . . . . . . Critical Parts Destroyed 2 | . . 1 . . 1 Critical Strikes 5 | 2 1 1 . . 1 Burn 2 | 2 . . . . . Corrupt 1 | . 1 . . . . Smash 2 | . . 1 . . 1 Melee Attacks 31 | . 4 14 4 1 8 Impact 26 | . 4 14 . . 8 Slashing . | . . . . . . Piercing . | . . . . . . Sneak Attacks 6 | . 1 . 4 1 . Combat Hostiles . | . . . . . . Follow-up Attacks 3 | . . 3 . . . Damage Inflicted 1327 | 57 840 197 . . 233 Guns 464 | 57 407 . . . . Cannons . | . . . . . . Explosions 358 | . 358 . . . . Melee 502 | . 72 197 . . 233 Ramming 3 | . 3 . . . . Kinetic . | . . . . . . Thermal 402 | 57 345 . . . . Explosive 271 | . 271 . . . . Electromagnetic 149 | . 149 . . . . Impact 502 | . 72 197 . . 233 Slashing . | . . . . . . Piercing . | . . . . . . Highest Corruption . | . . . . . . Average Corruption . | . . . . . . Corruption Purged . | . . . . . . Corruption Blocked . | . . . . . . Overload Shots . | . . . . . . Overflow Damage 117 | . 62 15 . . 40 Projectiles . | . . . . . . Explosions . | . . . . . . Melee 117 | . 62 15 . . 40 Knockbacks . | . . . . . . Impact . | . . . . . . Kinetic . | . . . . . . Secondary . | . . . . . . Self-Inflicted Damage 27 | . 27 . . . . Shots 1 | . 1 . . . . Rammed . | . . . . . . Targets Rammed 2 | . 1 . . 1 . Kicked 2 | . 1 . . 1 . Crushed . | . . . . . . Highest Temperature 163 | 90 163 . . . . Average Temperature 71 | 48 73 . . . . Received Heat Transfer 231 | . 126 105 . . . Siege Activations . | . . . . . . Martial Activations . | . . . . . . Shielding Activations . | . . . . . . Robots Disrupted . | . . . . . . Combat Hostiles . | . . . . . . Robots Corrupted 2 | . . 1 . . 1 Combat Hostiles 2 | . . 1 . . 1 Parts Fried 5 | . 3 1 . . 1 Impact Corruptions 6 | . 3 1 . . 2 Robots Melted . | . . . . . . Combat Hostiles . | . . . . . . Parts Melted 2 | 1 1 . . . . Heat Transferred 1106 | 309 797 . . . . Parts Sabotaged . | . . . . . . Parts Stolen . | . . . . . . Parts Stripped . | . . . . . . Power Chain Reactions 1 | . 1 . . . . Alert | -11 -10 -10 -10 -9 -8 ------- Run | Yrd Mat Min Exi Min Mat Maximum Alert Level . | . . . . . . Low Security (%) 100 | 100 100 100 . 100 100 Level 1 . | . . . . . . Level 2 . | . . . . . . Level 3 . | . . . . . . Level 4 . | . . . . . . Level 5 . | . . . . . . High Security . | . . . . . . Max Security . | . . . . . . Peak Influence 94 | 15 94 40 . . 30 Initial 15 | . 3 15 . . . Average 15 | 2 23 10 . . 1 Influence Increases 370 | 15 275 50 . . 30 Destroy 0b10 Robot/C 200 | . 140 40 . . 20 Destroy 0b10 Robot/NC 55 | 15 40 . . . . Destroy Leader 54 | . 34 10 . . 10 Successful Hack 30 | . 30 . . . . Destroy Structure 31 | . 31 . . . . Influence Decreases 340 | 10 240 70 20 . . Entered New Map 47 | . 2 25 20 . . Time Decay 283 | 10 228 45 . . . Lost Part 10 | . 10 . . . . Squads Dispatched 2 | . 1 . . . 1 Investigation . | . . . . . . Extermination . | . . . . . . Reinforcement 2 | . 1 . . . 1 Assault . | . . . . . . Garrison . | . . . . . . Intercept . | . . . . . . Searches Triggered . | . . . . . . Construction Impeded . | . . . . . . Haulers Reinforced . | . . . . . . Active Scanning Responses . | . . . . . . Cargo Convoy Interrupts . | . . . . . . Stealth | -11 -10 -10 -10 -9 -8 --------- Run | Yrd Mat Min Exi Min Mat Distress Signals 2 | . 1 . . . 1 Communications Jammed . | . . . . . . Distress Signals . | . . . . . . Times Spotted 22 | . 18 2 . . 2 Peak Tracking Total 5 | . 5 2 . . 4 Tactical Retreats . | . . . . . . Traps | -11 -10 -10 -10 -9 -8 ------- Run | Yrd Mat Min Exi Min Mat Traps Triggered . | . . . . . . Indirectly . | . . . . . . Trap Hack Attempts . | . . . . . . Triggered . | . . . . . . Disarmed . | . . . . . . Reprogrammed . | . . . . . . Reused . | . . . . . . Traps Extracted . | . . . . . . Installed . | . . . . . . Triggered . | . . . . . . Machines | -11 -10 -10 -10 -9 -8 ---------- Run | Yrd Mat Min Exi Min Mat Machines Disabled . | . . . . . . Max in Single Turn . | . . . . . . Machines Repaired . | . . . . . . Machines Dismantled . | . . . . . . Machines Sabotaged . | . . . . . . Overloaded Fab Kills . | . . . . . . Hacking | -11 -10 -10 -10 -9 -8 --------- Run | Yrd Mat Min Exi Min Mat Machines Accessed 6 | . 4 . 2 . . Terminals 3 | . 3 . . . . Fabricators . | . . . . . . Repair Stations 1 | . 1 . . . . Recycling Units . | . . . . . . Scanalyzers . | . . . . . . Garrison Access . | . . . . . . Total Hacks 10 | . 8 . 2 . . Successful 7 | . 5 . 2 . . Failed 3 | . 3 . . . . Catastrophic . | . . . . . . Database Lockouts . | . . . . . . Manual 2 | . 1 . 1 . . Terminals 7 | . 7 . . . . Fabricators . | . . . . . . Repair Stations 1 | . 1 . . . . Recycling Units . | . . . . . . Scanalyzers . | . . . . . . Garrison Access . | . . . . . . Terminal Hacks 6 | . 4 . 2 . . Record 1 | . . . 1 . . Locate Traps 3 | . 3 . . . . Recall Reinforcements 1 | . 1 . . . . Proto ID Catalog 1 | . . . 1 . . Fabricator Hacks . | . . . . . . Repair Station Hacks . | . . . . . . Recycling Unit Hacks . | . . . . . . Scanalyzer . | . . . . . . Garrison Access Hacks . | . . . . . . Unauthorized Hacks 1 | . 1 . . . . Terminals 1 | . 1 . . . . Track 1 | . 1 . . . . Fabricators . | . . . . . . Repair Stations . | . . . . . . Recycling Units . | . . . . . . Scanalyzers . | . . . . . . Garrison Access . | . . . . . . Data Cores Recovered . | . . . . . . Used . | . . . . . . Hacking Detections 4 | . 4 . . . . Full Trace Events . | . . . . . . Feedback Events . | . . . . . . Feedback Blocked . | . . . . . . Robot Schematics Acquired . | . . . . . . Robots Built . | . . . . . . Authchips . | . . . . . . Time . | . . . . . . Total Robot Build Rating . | . . . . . . Part Schematics Acquired . | . . . . . . Parts Built . | . . . . . . Authchips . | . . . . . . Time . | . . . . . . Total Part Build Rating . | . . . . . . Part Studies Acquired . | . . . . . . Parts Repaired . | . . . . . . Time . | . . . . . . Parts Recycled . | . . . . . . Recycled Matter . | . . . . . . Retrieved Matter . | . . . . . . Retrieved Components . | . . . . . . Parts Scanalyzed . | . . . . . . Part Schematics Acquired . | . . . . . . Parts Damaged . | . . . . . . Bothacking | -11 -10 -10 -10 -9 -8 ------------ Run | Yrd Mat Min Exi Min Mat Used RIF Installer . | . . . . . . Robots Hacked 5 | . . . 4 1 . Non-combat 4 | . . . 3 1 . Combat 1 | . . . 1 . . Robot Hacks Applied 5 | . . . 4 1 . parse_system 5 | . . . 4 1 . Relay Couplers Released . | . . . . . . Fabnet Peak Effective % . | . . . . . . Robots Rewired . | . . . . . . Allies Hacked . | . . . . . . Hacks Repelled . | . . . . . . Allies | -11 -10 -10 -10 -9 -8 -------- Run | Yrd Mat Min Exi Min Mat Total Allies . | . . . . . . Largest Group . | . . . . . . Highest-Rated Group . | . . . . . . Highest-Rated Ally . | . . . . . . Total Orders . | . . . . . . Ally Attacks . | . . . . . . Total Damage . | . . . . . . Kills . | . . . . . . Allies Corrupted . | . . . . . . Allies Melted . | . . . . . . Intel | -11 -10 -10 -10 -9 -8 ------- Run | Yrd Mat Min Exi Min Mat Active Infowar (turns) 2475 | 11 981 196 870 308 109 Terrain 107 | . . . . . 107 Structural 1620 | . 160 196 870 308 86 Seismic 832 | 11 821 . . . . Robot Analysis Total . | . . . . . . Derelict Logs Recovered 1 | . . . . 1 . Drone Launches . | . . . . . . Drone Recoveries . | . . . . . . Exploration | -11 -10 -10 -10 -9 -8 ------------- Run | Yrd Mat Min Exi Min Mat Turns Passed 2570 | 77 1007 196 870 308 112 Spaces Moved 1298 | 47 490 86 454 160 61 Core 6 | 6 . . . . . Treads . | . . . . . . Legs 1292 | 41 490 86 454 160 61 Wheels . | . . . . . . Hover . | . . . . . . Flight . | . . . . . . Fastest Speed 50 | 50 120 190 190 190 120 Average Speed 178 | 115 175 190 190 190 120 Slowest Speed 190 | 190 190 190 190 190 120 Overloaded Moves . | . . . . . . Propulsion Burnouts . | . . . . . . Robots Hopped . | . . . . . . Potential Cave-ins . | . . . . . . Cave-ins Triggered . | . . . . . . Exploration Rate (%) 38 | 4 68 12 89 55 4 Regions Visited 5 Branch Regions 3 Pre-discovered Areas 1 | . . . 1 . . Known Exits Taken . | . . . . . . Unknown Exits Taken 5 | 1 1 1 1 1 . Scrap Searched 1 | . . . . 1 . Spaces Dug 1 | . 1 . . . . Terrain Destroyed 28 | . 28 . . . . Melee 1 | . 1 . . . . Projectile . | . . . . . . AOE 27 | . 27 . . . . Terrain Rammed . | . . . . . . Walls Destroyed . | . . . . . . Machines Disabled . | . . . . . . Actions | -11 -10 -10 -10 -9 -8 --------- Run | Yrd Mat Min Exi Min Mat Total 1438 | 60 568 98 459 167 86 Wait 29 | . 21 . . . 8 Move 1293 | 46 489 85 453 159 61 Hop . | . . . . . . Pick Up 19 | 4 11 . 1 2 1 Fast Attach 7 | 6 1 . . . . Attach 7 | 1 1 1 . . 4 Detach 2 | . . . . . 2 Swap 12 | . 8 1 1 1 1 Drop 5 | . 1 . . 3 1 Fire 34 | 3 31 . . . . Melee 28 | . 4 11 4 1 8 Ram . | . . . . . . Kick 2 | . 1 . . 1 . Crush . | . . . . . . Escape Stasis . | . . . . . . Rewire . | . . . . . . Trap . | . . . . . . Miscellaneous . | . . . . . . Route ------- -11/Scrapyard -10/Materials (discovered 3 exits: [*Mat x2] / [*Min]) -10/Mines -10/Exiles -9/Mines -8/Materials History --------- Turn | Location | Event 23 | -11/Scrapyard | Discovered new exit (range 16) 78 | -11/Scrapyard | Entered Materials 309 | -10/Materials | Build established: Mutant 366 | -10/Materials | Discovered new exit (range 14) 565 | -10/Materials | Discovered new exit (range 11) 738 | -10/Materials | Discovered new exit (range 9) 1085 | -10/Materials | Entered Mines 1154 | -10/Mines | Deemed a non-threat by the Exiles lab entrance 1154 | -10/Mines | Discovered new exit (range 5) 1281 | -10/Mines | Entered Exiles 1329 | -10/Exiles | Met 8R-AWN 1368 | -10/Exiles | Met EX-HEX 1436 | -10/Exiles | Met EX-BIN 1462 | -10/Exiles | Aligned with FarCom system 1464 | -10/Exiles | Given EX-Vault access code 1508 | -10/Exiles | Opened EX-Vault 1521 | -10/Exiles | Found Lightpack 2.0 1556 | -10/Exiles | Warned to stay clear of 0b10 Research branches 1613 | -10/Exiles | Met EX-DEC 1715 | -10/Exiles | Visited The Gauntlet 2063 | -10/Exiles | Learned location of Zion (-6) 2132 | -10/Exiles | Discovered new exit (range 12) 2151 | -10/Exiles | Left Exiles lab with Lightpack 2.0 2151 | -10/Exiles | Entered Mines 2172 | -9/Mines | Learned Materials emergency access door positions 2413 | -9/Mines | Received a Rocket Launcher from a helpful Derelict 2450 | -9/Mines | Discovered new exit (range 6) 2459 | -9/Mines | Entered Materials 2459 | -8/Materials | Evolved 4 slots: Propulsion x1, Utility x3 2571 | -8/Materials | Self-destructed Last Messages --------------- 02545_ Penetrated by Slug. 02548_ Structural Scanner destroyed. 02551_ Penetrated by Slug. 02554_ Slug penetrates Wall. 02556_ U-05 Engineer builds a Door. 02557_ Penetrated by Slug. 02560_ U-05 Engineer builds a Door. 02561_ H-55 Commando suffers critical hit (Smash). 02561_ Destroyed Targeting Computer. 02561_ H-55 Commando system corrupted by crushing effect. 02561_ ALERT: Hostiles spotted, dispatching reinforcements to Terminal M012. 02563_ Penetrated by Slug. 02564_ U-05 Engineer builds a Door. 02566_ Slug penetrates A-02 Transporter. 02566_ A-02 Transporter destroyed. 02567_ Destroyed Lgt. Nuclear Core. 02567_ H-55 Commando system corrupted by crushing effect. 02568_ H-55 Commando system terminally corrupted. 02568_ Gauss Rifle fried. Map ----- +----------------------------------------------------+ | ?????????????????????????????????????????????????? | | ?????????????????????????????????????????????????? | | ?????????????????????????????????????????????????? | | ?????????????????????????????????????????????????? | | ?????????????????????????????????????????????????? | | ?????????????????????????????????????????????????? | | ???????????????????+?????????????????????????????? | | ?????????????????????????????????????????????????? | | ?????????????????????????????????????????????????? | | ???????????????????????????????????? ??????????? | | ???????????????????+???????????????? # ????????? | | ?????????????????????????????????? # # ????????? | | ?????????????????????????????????? # ##????????? | | ????????????????????????????#?????## # ????????? | | ??????????????????????????????????## # ????????? | | ??????????????????????????????????## + ????????? | | ???????????????????????????????#??## # ????????? | | ??????????????????????????????#???## # ????????? | | ??????????????"???????????????????## # ????????? | | ????????????????????? ?????##?#???## ######????? | | ??????????????????"?????#????##???## ######????? | | ????????????????????????????????#?## ????? | | ?????????????? ???????????????????## ???????? | | ???????????## ############## ##????????? | | ???????????######################### ! ##????????? | | ?????#??# u =!%!@% ##????????? | | ????????? a u!![ ###############????????? | | ????????????######+####+#################??#?????? | | ???????????? # # ##???????????????? | | ?????????????? # # """ ##???????????????? | | ?????????????? # """ # """"" ##????#??????????? | | ???????????"?? # """ # """"" ##???????????????? | | ????????????? # """ + """"" ##???????????????? | | ????????????? # # """ !##???????????????? | | ?????????????? ######## ##??????#????????? | | ?????????????? ######## ##???????????????? | | ?????????????##??????#############???????????????? | | | | | | | | | | | | | | | | | | | | | | | | | | | +----------------------------------------------------+ Best States ------------- Heat Dissipation 31 Energy Generation 12 Energy Capacity 265 Matter Stores 300 Matter Capacity 300 Sight Range 16 Terrain Scan Range 16 Terrain Scan Density 10 Evasion (%) 55 Item Schematics ----------------- None Robot Schematics ------------------ None Fabricated ------------ Nothing Repaired ---------- Nothing Studied --------- None Alien Tech Used ----------------- None Achievements -------------- None Challenges ------------ None Game ------ Seed NullBorgRifle Manual? 0 Play Time 00:16:56 Cumulative 117.4 hours Start 2026.03.30 @ 17:02:14 End 2026.03.30 @ 17:41:49 Sessions 3 Manual Loads 0 Difficulty Rogue Special Mode None Game No. 112 Rogue 67 Adventurer 45 Explorer 0 Win Type - Total 3 Types 2/0/0/1/0/0/0/0/0/0 Lore% 63 Gallery% 55 Achievement% 40 Wizard Run 0 Options --------- Layout 0 ASCII 0 Keyboard 1 Movement Numpad Keybinds 0 Fullscreen 1 Font 24/Smallcaps Map View 76x50 Zoom Use 0% Tactical HUD 1 Map Filters NONE Filters NONE Steam 1 RUN: 5ca07405-cdb2-4b69-bee6-bb80456c27cf